Cogmind - Beta 14 @@@ ROGUE MODE // 2024.11.17 @ 15:23:04 Player: Arzon Result: Destroyed by as-75458 with Assembled Heavy Rifle Performance ------------- Evolutions (0) 0 Regions Visited (4) 800 Robots Destroyed (14) 70 Value Destroyed (328) 328 Prototype IDs (23) 460 Alien Tech Used (0) 0 Bonus (451) 451 TOTAL SCORE: 2109 Bonus ------- Follower Combat Kills 151 Aligned with FarCom 300 Cogmind --------- Core Integrity 0/250 Matter 254/300 Energy 100/100 System Corruption 10% Temperature Cool (0) Movement Core (200) Ox3 Location -9/Mines Parts ------- > --- POWER (1) -------- (None) > --- PROPULSION (2) --- (None) > --- UTILITY (2) ------ Medium Storage Unit > --- WEAPON (2) ------- (None) > --- INVENTORY (10) --- Light Ion Engine Aluminum Leg Aluminum Leg Aluminum Leg Signal Interpreter 0b10 Alert Chip Targeting Computer Targeting Computer Light Assault Rifle Peak State ------------ > --- POWER ------------ Light Angular Momentum Engine > --- PROPULSION ------- Aluminum Leg Carbon-fiber Leg > --- UTILITY ---------- Medium Storage Unit Light Armor Plating > --- WEAPON ----------- Assault Rifle Rocket Launcher > --- INVENTORY -------- Light Ion Engine Aluminum Leg Aluminum Leg Aluminum Leg Signal Interpreter 0b10 Alert Chip Targeting Computer Targeting Computer Light Assault Rifle Light Assault Rifle [Rating: 15] Favorites ----------- Power Improved Ion Engine Engine Improved Ion Engine Power Core Light Nuclear Core Propulsion Aluminum Leg Leg Aluminum Leg Utility Medium Storage Unit Device Tractor Beam Storage Medium Storage Unit Protection Light Armor Plating Weapon Light Assault Rifle Ballistic Gun Light Assault Rifle Launcher Rocket Launcher Special Weapon Mining Laser Build | -11 -10 -10 -10 -9 ------- Run | Yrd Mat Min Exi Min Slots Evolved . | . . . . . Power . | . . . . . Propulsion . | . . . . . Utility . | . . . . . Weapon . | . . . . . Parts Attached 29 | 7 5 7 2 8 Power 7 | 1 3 1 1 1 Engine 6 | 1 2 1 1 1 Core 1 | . 1 . . . Reactor . | . . . . . Propulsion 8 | 2 1 3 . 2 Treads . | . . . . . Leg 8 | 2 1 3 . 2 Wheel . | . . . . . Hover . | . . . . . Flight . | . . . . . Utility 4 | 2 1 1 . . Device 1 | 1 . . . . Storage 2 | 1 1 . . . Processor . | . . . . . Hackware . | . . . . . Protection 1 | . . 1 . . Artifact . | . . . . . Weapon 10 | 2 . 2 1 5 Energy Gun . | . . . . . Energy Cannon . | . . . . . Ballistic Gun 7 | 2 . . 1 4 Ballistic Cannon . | . . . . . Launcher 2 | . . 1 . 1 Special Weapon 1 | . . 1 . . Impact Weapon . | . . . . . Slashing Weapon . | . . . . . Piercing Weapon . | . . . . . Special Melee Weapon . | . . . . . Unidentified Prototypes . | . . . . . Parts Lost 9 | . 1 1 . 7 Power 1 | . . . . 1 Propulsion 2 | . . . . 2 Utility 2 | . 1 . . 1 Weapon 4 | . . 1 . 3 Highest Loss Streak 7 | . 1 1 . 7 To Critical Strikes . | . . . . . Average Slot Usage (%) 95 | . 88 96 92 98 Engine 13 | . 10 14 14 13 Leg 27 | . 28 28 28 27 Storage 14 | . 14 14 14 14 Protection 10 | . . 12 14 13 Ballistic Gun 20 | . 28 25 7 19 Launcher 5 | . . 1 14 8 Peak Build Rating 15 | 7 8 9 10 15 Average Rating 9 | 4 6 8 9 11 On Entrance 6 | . 7 7 9 9 Naked Turns . | . . . . . Heaviest Build 27 | 14 18 24 24 27 Greatest Support 25 | 20 20 20 20 25 Greatest Overweight (x) 1 | . . 1 1 1 Average Overweight (x) . | . . . 1 . Largest Inventory Capacity 10 | 8 10 10 10 10 Average Capacity 9 | 6 9 10 10 10 Most Carried 10 | 5 10 10 10 10 Average Carried 8 | 2 5 9 9 9 Final Capacity 10 | 8 10 10 10 10 Final Carried 10 | 3 10 10 9 9 Class Distribution -------------------- 71% | Mutant 28% | Scavenger-Mutant Dominant Class ---------------- Mutant | -10/Materials Mutant | -10/Mines Mutant | -10/Exiles Mutant | -9/Mines Resources | -11 -10 -10 -10 -9 ----------- Run | Yrd Mat Min Exi Min Matter Collected 788 | 278 257 82 . 171 Remotely 144 | 71 73 . . . Salvage Created 626 | 81 361 67 . 117 Parts 28 | 3 18 1 . 6 Haulers Intercepted . | . . . . . Recyclers Shooed 1 | . 1 . . . Parts Field Recycled . | . . . . . Retrieved Matter . | . . . . . Parts Self-Destructed . | . . . . . Prevented . | . . . . . Kills | -11 -10 -10 -10 -9 ------- Run | Yrd Mat Min Exi Min Combat Hostiles Destroyed 26 | . 6 5 . 15 Guns 8 | . 6 2 . . AOE 18 | . . 3 . 15 Classes Destroyed 5 | 1 2 1 . 1 Recycler 3 | 1 1 . . 1 Operator 1 | . 1 . . . Swarmer 3 | . . . . 3 Grunt 7 | . 6 1 . . Assembled 16 | . . 4 . 12 Best Kill Streak 12 | 1 2 3 . 12 Combat Bots Only 12 | . 2 3 . 12 Max Kills in Single Turn 5 | 1 1 1 . 5 Gunslinging . | . . . . . Exploded 5 | . . 1 . 5 Melee . | . . . . . Uniques/NPCs Destroyed . | . . . . . Combat | -11 -10 -10 -10 -9 -------- Run | Yrd Mat Min Exi Min Hostile Shots Fired 118 | . 36 22 . 60 Missed 31 | . 10 5 . 16 Damage Taken 1279 | . 297 256 . 726 Core 258 | . 25 72 . 161 Absorbed by Shields . | . . . . . Core Remaining (%) 100 | 100 . . . . Volleys Fired 83 | 2 53 16 . 12 Largest 2 | 2 2 2 . 2 Hottest 120 | 40 40 120 . 40 Shots Fired 150 | 4 106 23 . 17 Gun 133 | 4 106 13 . 10 Cannon . | . . . . . Launcher 13 | . . 6 . 7 Special 4 | . . 4 . . Kinetic 133 | 4 106 13 . 10 Thermal 4 | . . 4 . . Explosive 13 | . . 6 . 7 Electromagnetic . | . . . . . Robot Hit Streak 6 | 2 6 5 . 4 Robot Miss Streak 5 | 1 5 2 . 2 Penetration Max . | . . . . . Secondary Targets 2 | . 1 1 . . Max Gunslinging Chain 1 | . 1 1 . . Shots Hit Robots 74 | 2 50 12 . 10 Core Hits 67 | 2 21 11 . 33 Critical Kills . | . . . . . Critical Parts Destroyed . | . . . . . Critical Strikes . | . . . . . Melee Attacks . | . . . . . Impact . | . . . . . Slashing . | . . . . . Piercing . | . . . . . Sneak Attacks . | . . . . . Combat Hostiles . | . . . . . Follow-up Attacks . | . . . . . Damage Inflicted 2009 | 17 560 295 . 1137 Guns 744 | 17 560 102 . 65 Cannons . | . . . . . Explosions 1241 | . . 180 . 1061 Melee . | . . . . . Ramming 24 | . . 13 . 11 Kinetic 744 | 17 560 102 . 65 Thermal . | . . . . . Explosive 1241 | . . 180 . 1061 Electromagnetic . | . . . . . Impact . | . . . . . Slashing . | . . . . . Piercing . | . . . . . Highest Corruption 10 | . . . . 10 Average Corruption 10 | . . . . 10 Corruption Purged . | . . . . . Corruption Blocked . | . . . . . Overload Shots . | . . . . . Overflow Damage 22 | . . 14 . 8 Projectiles . | . . . . . Explosions 22 | . . 14 . 8 Melee . | . . . . . Knockbacks . | . . . . . Impact . | . . . . . Kinetic . | . . . . . Secondary . | . . . . . Self-Inflicted Damage 21 | . . 21 . . Shots 2 | . . 2 . . Rammed . | . . . . . Targets Rammed 5 | . . 3 . 2 Kicked 5 | . . 3 . 2 Crushed . | . . . . . Highest Temperature 172 | . 27 172 . 27 Average Temperature 30 | . 6 75 . 6 Received Heat Transfer 328 | . 189 39 . 100 Siege Activations . | . . . . . Robots Corrupted . | . . . . . Combat Hostiles . | . . . . . Parts Fried . | . . . . . Impact Corruptions . | . . . . . Robots Melted . | . . . . . Combat Hostiles . | . . . . . Parts Melted . | . . . . . Heat Transferred . | . . . . . Parts Sabotaged . | . . . . . Parts Stolen . | . . . . . Parts Stripped . | . . . . . Power Chain Reactions . | . . . . . Alert | -11 -10 -10 -10 -9 ------- Run | Yrd Mat Min Exi Min Peak Influence 210 | 5 210 127 . 120 Initial 81 | . 3 81 . . Average 66 | 2 126 69 . 34 Maximum Alert Level 1 | . 1 . . . Low Security (%) 96 | 100 83 100 . 100 Level 1 3 | . 16 . . . Level 2 . | . . . . . Level 3 . | . . . . . Level 4 . | . . . . . Level 5 . | . . . . . High Security . | . . . . . Max Security . | . . . . . Squads Dispatched 3 | . 3 . . . Investigation 1 | . 1 . . . Extermination . | . . . . . Reinforcement 2 | . 2 . . . Assault . | . . . . . Garrison . | . . . . . Intercept . | . . . . . Searches Triggered . | . . . . . Construction Impeded . | . . . . . Haulers Reinforced . | . . . . . Active Scanning Responses . | . . . . . Cargo Convoy Interrupts . | . . . . . Stealth | -11 -10 -10 -10 -9 --------- Run | Yrd Mat Min Exi Min Distress Signals . | . . . . . Communications Jammed . | . . . . . Distress Signals . | . . . . . Times Spotted 48 | . 16 8 . 24 Peak Tracking Total 20 | . 3 3 . 20 Tactical Retreats 1 | . . 1 . . Traps | -11 -10 -10 -10 -9 ------- Run | Yrd Mat Min Exi Min Traps Triggered 1 | . 1 . . . Indirectly . | . . . . . Trap Hack Attempts . | . . . . . Triggered . | . . . . . Disarmed . | . . . . . Reprogrammed . | . . . . . Reused . | . . . . . Traps Extracted . | . . . . . Installed . | . . . . . Triggered . | . . . . . Machines | -11 -10 -10 -10 -9 ---------- Run | Yrd Mat Min Exi Min Machines Disabled . | . . . . . Max in Single Turn . | . . . . . Machines Repaired . | . . . . . Machines Dismantled . | . . . . . Machines Sabotaged . | . . . . . Overloaded Fab Kills . | . . . . . Hacking | -11 -10 -10 -10 -9 --------- Run | Yrd Mat Min Exi Min Machines Accessed 3 | . 2 . 1 . Terminals 1 | . 1 . . . Fabricators . | . . . . . Repair Stations 1 | . 1 . . . Recycling Units . | . . . . . Scanalyzers . | . . . . . Garrison Access . | . . . . . Total Hacks 7 | . 6 . 1 . Successful 3 | . 2 . 1 . Failed 4 | . 4 . . . Catastrophic . | . . . . . Database Lockouts . | . . . . . Manual 2 | . 1 . 1 . Terminals 1 | . 1 . . . Fabricators . | . . . . . Repair Stations 5 | . 5 . . . Recycling Units . | . . . . . Scanalyzers . | . . . . . Garrison Access . | . . . . . Terminal Hacks 1 | . . . 1 . Derelict Proto ID Bank 1 | . . . 1 . Fabricator Hacks . | . . . . . Repair Station Hacks 2 | . 2 . . . Scan Component 2 | . 2 . . . Recycling Unit Hacks . | . . . . . Scanalyzer . | . . . . . Garrison Access Hacks . | . . . . . Unauthorized Hacks . | . . . . . Terminals . | . . . . . Fabricators . | . . . . . Repair Stations . | . . . . . Recycling Units . | . . . . . Scanalyzers . | . . . . . Garrison Access . | . . . . . Data Cores Recovered . | . . . . . Used . | . . . . . Hacking Detections 1 | . 1 . . . Full Trace Events 1 | . 1 . . . Feedback Events . | . . . . . Feedback Blocked . | . . . . . Robot Schematics Acquired . | . . . . . Robots Built . | . . . . . Authchips . | . . . . . Time . | . . . . . Total Robot Build Rating . | . . . . . Part Schematics Acquired . | . . . . . Parts Built . | . . . . . Authchips . | . . . . . Time . | . . . . . Total Part Build Rating . | . . . . . Parts Repaired . | . . . . . Time . | . . . . . Parts Recycled . | . . . . . Recycled Matter . | . . . . . Retrieved Matter . | . . . . . Retrieved Components . | . . . . . Parts Scanalyzed . | . . . . . Part Schematics Acquired . | . . . . . Parts Damaged . | . . . . . Bothacking | -11 -10 -10 -10 -9 ------------ Run | Yrd Mat Min Exi Min Used RIF Installer . | . . . . . Robots Hacked . | . . . . . Non-combat . | . . . . . Combat . | . . . . . Robot Hacks Applied . | . . . . . Relay Couplers Released . | . . . . . Fabnet Peak Effective % . | . . . . . Robots Rewired . | . . . . . Allies Hacked . | . . . . . Hacks Repelled . | . . . . . Allies | -11 -10 -10 -10 -9 -------- Run | Yrd Mat Min Exi Min Total Allies 3 | . . 3 . . Largest Group 3 | . . 3 . . Highest-Rated Group 40 | . . 40 . . Highest-Rated Ally 16 | . . 16 . . Total Orders . | . . . . . Ally Attacks 37 | . . 37 . . Total Damage 438 | . . 438 . . Kills 5 | . . 5 . . Allies Corrupted 1 | . . 1 . . Allies Melted . | . . . . . Intel | -11 -10 -10 -10 -9 ------- Run | Yrd Mat Min Exi Min Robot Analysis Total . | . . . . . Derelict Logs Recovered 1 | . . 1 . . Drone Launches . | . . . . . Drone Recoveries . | . . . . . Exploration | -11 -10 -10 -10 -9 ------------- Run | Yrd Mat Min Exi Min Turns Passed 2519 | 71 388 946 438 676 Spaces Moved 1358 | 50 180 485 229 414 Core 15 | 15 . . . . Treads . | . . . . . Legs 1343 | 35 180 485 229 414 Wheels . | . . . . . Hover . | . . . . . Flight . | . . . . . Fastest Speed 50 | 50 120 120 190 120 Average Speed 160 | 99 120 176 190 152 Slowest Speed 190 | 120 120 190 190 190 Overloaded Moves . | . . . . . Propulsion Burnouts . | . . . . . Robots Hopped . | . . . . . Cave-ins Triggered . | . . . . . Exploration Rate (%) 45 | 4 32 75 62 56 Regions Visited 4 Branch Regions 3 Pre-discovered Areas 1 | . . 1 . . Known Exits Taken . | . . . . . Unknown Exits Taken 4 | 1 1 1 1 . Scrap Searched 1 | . . 1 . . Spaces Dug 13 | . . . . 13 Terrain Destroyed 84 | . . 16 . 68 Melee . | . . . . . Projectile . | . . . . . AOE 84 | . . 16 . 68 Terrain Rammed . | . . . . . Walls Destroyed . | . . . . . Machines Disabled . | . . . . . Actions | -11 -10 -10 -10 -9 --------- Run | Yrd Mat Min Exi Min Total 1549 | 68 257 549 232 443 Wait 26 | . 2 22 . 2 Move 1354 | 49 179 484 228 414 Hop . | . . . . . Pick Up 35 | 10 12 9 1 3 Fast Attach . | . . . . . Attach 11 | 7 1 1 1 1 Detach 1 | . 1 . . . Swap 18 | . 4 6 1 7 Drop 16 | . 5 8 1 2 Fire 83 | 2 53 16 . 12 Melee . | . . . . . Ram . | . . . . . Kick 5 | . . 3 . 2 Crush . | . . . . . Escape Stasis . | . . . . . Rewire . | . . . . . Trap . | . . . . . Miscellaneous . | . . . . . Route ------- -11/Scrapyard -10/Materials -10/Mines (discovered 2 exits: [*Mat] / *Exi) -10/Exiles -9/Mines History --------- Turn | Location | Event 5 | -11/Scrapyard | Discovered new exit (range 15) 72 | -11/Scrapyard | Entered Materials 291 | -10/Materials | Discovered new exit (range 14) 318 | -10/Materials | Build established: Mutant 460 | -10/Materials | Entered Mines 460 | -10/Mines | Discovered new exit (range 11) 467 | -10/Mines | Received a Rocket Launcher from a helpful Derelict 486 | -10/Mines | Assisted by bots powering up and referring to "LRC-V3" 885 | -10/Mines | Build established: Scavenger-Mutant 931 | -10/Mines | Found DCF Scrap (12 items) 1071 | -10/Mines | Learned Materials emergency access door positions 1086 | -10/Mines | Learned location of Storage (-7) 1261 | -10/Mines | Build established: Mutant 1281 | -10/Mines | Excavation squad dispatched 1281 | -10/Mines | A large section of the Mines collapsed 1391 | -10/Mines | Discovered new exit (range 8) 1406 | -10/Mines | Entered Exiles 1452 | -10/Exiles | Met 8R-AWN 1486 | -10/Exiles | Met EX-HEX 1545 | -10/Exiles | Met EX-BIN 1570 | -10/Exiles | Aligned with FarCom system 1572 | -10/Exiles | Given EX-Vault access code 1615 | -10/Exiles | Opened EX-Vault 1626 | -10/Exiles | Found 0b10 Alert Chip 1671 | -10/Exiles | Warned to stay clear of 0b10 Research branches 1722 | -10/Exiles | Met EX-DEC 1819 | -10/Exiles | Discovered new exit (range 15) 1844 | -10/Exiles | Left Exiles lab with 0b10 Alert Chip 1844 | -10/Exiles | Entered Mines 2463 | -9/Mines | Assembled infested the area 2491 | -9/Mines | Build established: Scavenger-Mutant 2509 | -9/Mines | Destroyed 12 combat bots 2511 | -9/Mines | Core integrity fell below 50% 2520 | -9/Mines | Core integrity fell below 20% 2520 | -9/Mines | System corruption reached 10% 2520 | -9/Mines | Destroyed by as-75458 with Assembled Heavy Rifle Last Messages --------------- as-70569 destroyed. as-69506 destroyed. as-24545 destroyed. as-05583 destroyed. as-42808 destroyed. [Achievement: Quick And Dirty] Destroyed Asb. Hover Unit. Rocket Launcher destroyed. The unstable cave ceiling collapses. 1 Matter crushed. as-80126 sneak attacks. Lgt. Armor Plating destroyed. The unstable cave ceiling collapses. Lgt. Angular Momentum Engine destroyed. Destroyed Asb. Hover Unit. Carbon-fiber Leg destroyed. Lgt. Assault Rifle destroyed. Aluminum Leg destroyed. Lgt. Assault Rifle destroyed. System corrupted by crushing effect (+5). Map ----- +----------------------------------------------------+ | ???????????????# #???# | | ???????????????# #???## ### | | ???????????????# #########?# | | ???????????????# #???## | | ???????????????###### #???# # | | ????????????????????# #???# # | | ????????????????????# #???## # | | ??????????????????### ##???# | | ??????????????????### ###### | | ????????????????#### | | ????????????????# ## | | ????????????????# # ######## | | ????????????????# # ####??### | | ????????????????# # ###????? | | ????????????????### ##????? | | ?????????????????### ##????? | | ?????????????????# # ###????? | | ?????????????????### ########## | | ???????######?????## ## # | | ????#### ##????## ## # | | ???## ##??### ## # | | ??## ##?# # | | ??# aa #?#C#### # | | ??# a #?# #??# """" # | | ??# aaa #?# #??# """" # | | ??# @### #?# #??# """" # | | ??## ##?# ##?# #??# # | | ???###???# #### #??# """" # | | ?????????## #??# """" # | | ??????????# #### #??# """" # | | ?????????# #?# #??# ? # | | ????????# ?# #??### ??### | | ????????# # #????? ????? | | ????????# ## C????? ????? | | ????????## ####????? ????? | | ????????? ##?????????????? | | ????????? %| % #?????????????? | | ????????# % # #?????????????? | | ????????#### ##?????????????? | | ??????????? ??????????????? | | ??????????? ??????????????? | | ??????????? #??????????????? | | ??????????? #???????????????? | | ??????????????????????????????? | | ??????????????????????????????? | | ??????????????????????????????? | | ??????????????????????????????? | | ??????????????????????????????? | | ??????????????????????????????? | | ??????????????????????????????? | +----------------------------------------------------+ Best States ------------- Heat Dissipation 25 Energy Generation 18 Energy Capacity 265 Matter Stores 300 Matter Capacity 300 Sight Range 16 Terrain Scan Density 10 Armor Coverage 150 Evasion (%) 55 Item Schematics ----------------- None Robot Schematics ------------------ None Fabricated ------------ Nothing Alien Tech Used ----------------- None Achievements -------------- Quick And Dirty Use The Force Challenges ------------ None Game ------ Seed ZioniteCoordinationLance Manual? 0 Play Time 00:18:45 Cumulative 14.0 hours Start 2024.11.17 @ 15:05:21 End 2024.11.17 @ 15:23:04 Sessions 1 Manual Loads 0 Difficulty Rogue Special Mode None Game No. 16 Rogue 16 Adventurer 0 Explorer 0 Win Type - Total 0 Types 0/0/0/0/0/0/0/0/0 Lore% 10 Gallery% 12 Achievement% 16 Wizard Run 0 Options --------- Layout 1 ASCII 0 Keyboard 0 Movement Mouse Keybinds 0 Fullscreen 1 Font 48/Smallcaps Map View 50x35 Zoom Use 0% Tactical HUD 0 Map Filters NONE Filters NONE Steam 1 RUN: e8f1af10-8942-4512-aaab-3e985d784050